[Event "CZE-ch U16 Girls 2023"]
[Site "Teplice"]
[Date "2023.03.15"]
[Round "6.5"]
[White "Barteckova, Denisa"]
[Black "Vacekova, Anita"]
[Result "0-1"]
[ECO "C50"]
[WhiteElo "1417"]
[BlackElo "1350"]
[Annotator "NA RC COMBH"]
[PlyCount "88"]
[EventDate "2023.03.09"]
[EventType "swiss"]
[EventCountry "CZE"]
[SourceTitle "playchess.com"]
[Source "ChessBase"]
[SourceQuality "1"]
[TimeControl "40/5400+30:1800+30"]

1. e4 {[%emt 0:00:02]} e5 {[%emt 0:00:05]} 2. Nf3 {[%emt 0:00:12]} Nc6 {[%emt 0:00:08]} 3. Bc4 {[%emt 0:00:14]} Nf6 {[%emt 0:00:20]} 4. d3 {[%emt 0:00:07]} Bc5 {[%emt 0:01:00]} 5. c3 {[%emt 0:00:10]} d6 {[%emt 0:01:16]} 6. h3 {[%emt 0:01:04]} h6 {[%emt 0:01:03]} 7. O-O {[%emt 0:00:17]} O-O {[%emt 0:01:04]} 8. Re1 {[%emt 0:00:26]} Be6 {[%emt 0:04:49]} 9. Bb3 {[%emt 0:01:06]} Re8 {[%emt 0:11:36]} 10. Nbd2 {[%emt 0:05:17]} Bb6 {[%emt 0:12:43]} 11. Bc2 {[%emt 0:02:06]} Ne7 {[%emt 0:12:49]} 12. a4 {[%emt 0:01:04]} c6 {[%emt 0:01:48]} 13. b4 {[%emt 0:01:28]} a5 {[%emt 0:03:43]} 14. b5 {[%emt 0:02:06]} cxb5 {[%emt 0:01:19]} 15. axb5 {[%emt 0:00:19]} Qc7 {[%emt 0:04:13]} 16. c4 {[%emt 0:00:26]} Ng6 {[%emt 0:05:23]} 17. Nb1 {[%emt 0:02:27]} Nf4 {[%emt 0:05:57]} 18. Bxf4 {[%emt 0:02:23]} exf4 {[%emt 0:00:10]} 19. Nc3 {[%emt 0:01:09]} g5 {[%emt 0:03:51]} 20. Qd2 {[%emt 0:04:01]} Qd7 {[%emt 0:05:18]} 21. Na4 {[%emt 0:05:11]} Bc7 {[%emt 0:03:18]} 22. h4 {[%emt 0:13:42]} Bg4 {[%emt 0:04:51]} 23. Nh2 {[%emt 0:05:37]} Bh5 {[%emt 0:01:14]} 24. Bd1 {[%emt 0:02:59]} Bg6 {[%emt 0:01:49]} 25. hxg5 {[%emt 0:05:02]} hxg5 {[%emt 0:00:15]} 26. g4 {[%emt 0:00:12]} Nh7 {[%emt 0:03:31]} 27. f3 {[%emt 0:02:02]} Nf8 {[%emt 0:00:26]} 28. Qc3 {[%emt 0:02:19]} Ne6 {[%emt 0:01:26]} 29. Nf1 {[%emt 0:00:49]} Nc5 {[%emt 0:00:48]} 30. Kg2 {[%emt 0:01:48]} Nxa4 {[%emt 0:01:01]} 31. Bxa4 {[%emt 0:01:01]} b6 {[%emt 0:00:32]} 32. Nd2 {[%emt 0:00:14]} Re7 {[%emt 0:01:08]} 33. Rh1 {[%emt 0:00:41]} Bh7 {[%emt 0:00:41]} 34. Qf6 {[%emt 0:01:31]} Qe6 {[%emt 0:02:40]} 35. Qxg5+ {[%emt 0:00:35]} Bg6 {[%emt 0:00:25]} 36. d4 {[%emt 0:05:05]} d5 {[%emt 0:02:29]} 37. cxd5 {[%emt 0:01:55]} Qd6 {[%emt 0:00:59]} 38. Qh6 {[%emt 0:00:14]} Qf6 {[%emt 0:00:21]} 39. e5 {[%emt 0:01:09]} Bxe5 {[%emt 0:01:09]} 40. dxe5 {[%emt 0:00:36]} Rxe5 {[%emt 0:00:26]} 41. Raf1 {[%emt 0:54:13]} Re2+ {[%emt 0:31:19]} 42. Rf2 {[%emt 0:00:17]} Rxf2+ {[%emt 0:00:00]} 43. Kxf2 {[%emt 0:00:00]} Qd4+ {[%emt 0:00:00]} 44. Ke1 {[%emt 0:00:00]} Re8+ {[%emt 0:00:00]} 0-1

[Event "CZE-ch U16 Girls 2023"]
[Site "Teplice"]
[Date "2023.03.15"]
[Round "6.6"]
[White "Reznickova, Sibyla"]
[Black "Dominikova, Denisa"]
[Result "0-1"]
[ECO "A03"]
[WhiteElo "1386"]
[BlackElo "1301"]
[Annotator "NA RC COMBH"]
[PlyCount "76"]
[EventDate "2023.03.09"]
[EventType "swiss"]
[EventCountry "CZE"]
[SourceTitle "playchess.com"]
[Source "ChessBase"]
[SourceQuality "1"]
[TimeControl "40/5400+30:1800+30"]

1. f4 {[%emt 0:00:06]} d5 {[%emt 0:00:38]} 2. Nf3 {[%emt 0:00:13]} Nf6 {[%emt 0:01:52]} 3. e3 {[%emt 0:00:24]} g6 {[%emt 0:05:01]} 4. d4 {[%emt 0:01:18]} Bf5 {[%emt 0:05:50]} 5. Nc3 {[%emt 0:01:21]} Bg7 {[%emt 0:03:16]} 6. Bd3 {[%emt 0:01:11]} Ne4 {[%emt 0:03:45]} 7. Bd2 {[%emt 0:02:43]} O-O {[%emt 0:04:16]} 8. Nh4 {[%emt 0:06:35]} Nxc3 {[%emt 0:02:25]} 9. Bxc3 {[%emt 0:00:49]} Be4 {[%emt 0:01:27]} 10. Qg4 {[%emt 0:05:03]} f5 {[%emt 0:05:24]} 11. Qg3 {[%emt 0:04:54]} Nd7 {[%emt 0:02:41]} 12. Bxe4 {[%emt 0:02:05]} dxe4 {[%emt 0:04:22]} 13. Qh3 {[%emt 0:09:25]} Nf6 {[%emt 0:03:30]} 14. g4 {[%emt 0:06:24]} Nxg4 {[%emt 0:08:32]} 15. Qg3 {[%emt 0:04:03]} e6 {[%emt 0:05:48]} 16. Ng2 {[%emt 0:06:31]} Qd5 {[%emt 0:03:12]} 17. h3 {[%emt 0:04:06]} Nf6 {[%emt 0:00:27]} 18. Rg1 {[%emt 0:03:22]} a5 {[%emt 0:03:36]} 19. a3 {[%emt 0:05:47]} b5 {[%emt 0:01:25]} 20. b4 {[%emt 0:02:04]} Qc4 {[%emt 0:01:51]} 21. Bd2 {[%emt 0:03:45]} axb4 {[%emt 0:06:36]} 22. Bxb4 {[%emt 0:01:14]} Qxc2 {[%emt 0:02:17]} 23. Rd1 {[%emt 0:05:43]} Rf7 {[%emt 0:01:48]} 24. Rd2 {[%emt 0:00:59]} Qc4 {[%emt 0:01:26]} 25. Kf2 {[%emt 0:02:16]} Bf8 {[%emt 0:04:29]} 26. Bxf8 {[%emt 0:07:14]} Rfxf8 {[%emt 0:00:16]} 27. Nh4 {[%emt 0:01:26]} Rf7 {[%emt 0:09:54]} 28. Ra1 {[%emt 0:05:02]} b4 {[%emt 0:01:23]} 29. a4 {[%emt 0:01:11]} Qc3 {[%emt 0:01:24]} 30. Rdd1 {[%emt 0:02:56]} b3 {[%emt 0:02:11]} 31. Qg1 {[%emt 0:02:59]} b2 {[%emt 0:01:17]} 32. Rab1 {[%emt 0:00:36]} Rxa4 {[%emt 0:00:54]} 33. Ke2 {[%emt 0:00:58]} c6 {[%emt 0:01:10]} 34. Kf2 {[%emt 0:01:26]} Rfa7 {[%emt 0:01:07]} 35. Ke2 {[%emt 0:01:02]} Ra1 {[%emt 0:00:38]} 36. Nxg6 {[%emt 0:00:15]} Rg7 {[%emt 0:01:07]} 37. Rxa1 {[%emt 0:00:31]} bxa1=Q {[%emt 0:00:26]} 38. Rxa1 {[%emt 0:00:04]} Qb2+ {[%emt 0:00:09]} 0-1

[Event "CZE-ch U16 Girls 2023"]
[Site "Teplice"]
[Date "2023.03.15"]
[Round "6.8"]
[White "Sikorova, Jana"]
[Black "Macova, Marketa"]
[Result "1-0"]
[ECO "E61"]
[WhiteElo "1735"]
[BlackElo "1195"]
[Annotator "NA RC COMBH"]
[PlyCount "63"]
[EventDate "2023.03.09"]
[EventType "swiss"]
[EventCountry "CZE"]
[SourceTitle "playchess.com"]
[Source "ChessBase"]
[SourceQuality "1"]
[TimeControl "40/5400+30:1800+30"]

1. d4 {[%emt 0:00:05]} Nf6 {[%emt 0:00:56]} 2. c4 {[%emt 0:00:16]} g6 {[%emt 0:00:25]} 3. Nc3 {[%emt 0:00:20]} Bg7 {[%emt 0:00:26]} 4. Bg5 {[%emt 0:00:46]} d6 {[%emt 0:00:23]} 5. Nf3 {[%emt 0:00:26]} Bg4 {[%emt 0:00:17]} 6. e3 {[%emt 0:00:50]} Nbd7 {[%emt 0:00:13]} 7. Be2 {[%emt 0:03:14]} c5 {[%emt 0:01:10]} 8. h3 {[%emt 0:01:19]} Bxf3 {[%emt 0:00:28]} 9. Bxf3 {[%emt 0:00:37]} Rb8 {[%emt 0:00:54]} 10. O-O {[%emt 0:02:14]} O-O {[%emt 0:00:34]} 11. Qd3 {[%emt 0:05:38]} Re8 {[%emt 0:05:28]} 12. Rab1 {[%emt 0:20:26]} Qc7 {[%emt 0:11:30]} 13. b4 {[%emt 0:03:39]} b6 {[%emt 0:01:10]} 14. Nb5 {[%emt 0:02:20]} Qd8 {[%emt 0:04:26]} 15. Nxa7 {[%emt 0:00:30]} Qc7 {[%emt 0:01:03]} 16. Nb5 {[%emt 0:00:13]} Qc8 {[%emt 0:00:55]} 17. bxc5 {[%emt 0:03:28]} bxc5 {[%emt 0:00:45]} 18. a4 {[%emt 0:01:25]} cxd4 {[%emt 0:05:39]} 19. exd4 {[%emt 0:03:55]} Nb6 {[%emt 0:02:03]} 20. Rb4 {[%emt 0:01:34]} Rd8 {[%emt 0:04:54]} 21. Na7 {[%emt 0:04:26]} Qc7 {[%emt 0:07:44]} 22. Nc6 {[%emt 0:01:30]} Rbc8 {[%emt 0:00:54]} 23. Nxd8 {[%emt 0:00:51]} Rxd8 {[%emt 0:00:08]} 24. Rfb1 {[%emt 0:00:40]} Na8 {[%emt 0:01:03]} 25. Qb3 {[%emt 0:02:11]} Nd7 {[%emt 0:01:20]} 26. Rb7 {[%emt 0:04:28]} Qc8 {[%emt 0:01:08]} 27. Bxe7 {[%emt 0:01:31]} Re8 {[%emt 0:00:12]} 28. Bxd6 {[%emt 0:00:47]} Bxd4 {[%emt 0:00:19]} 29. Qb5 Qd8 {[%emt 0:04:09]} 30. Qxd7 {[%emt 0:04:37]} Bxf2+ {[%emt 0:00:38]} 31. Kxf2 {[%emt 0:00:28]} Qh4+ {[%emt 0:00:14]} 32. Bg3 {[%emt 0:00:30]} 1-0

[Event "CZE-ch U16 Girls 2023"]
[Site "Teplice"]
[Date "2023.03.15"]
[Round "6.9"]
[White "Hetfleischova, Elen"]
[Black "Souralova, Jana"]
[Result "1-0"]
[ECO "C68"]
[WhiteElo "1623"]
[BlackElo "1187"]
[Annotator "NA RC COMBH"]
[PlyCount "36"]
[EventDate "2023.03.09"]
[EventType "swiss"]
[EventCountry "CZE"]
[SourceTitle "playchess.com"]
[Source "ChessBase"]
[SourceQuality "1"]
[TimeControl "40/5400+30:1800+30"]

1. e4 {[%emt 0:00:14]} e5 {[%emt 0:00:00]} 2. Nf3 {[%emt 0:00:18]} Nc6 {[%emt 0:00:00]} 3. Bb5 {[%emt 0:00:04]} a6 {[%emt 0:00:02]} 4. Bxc6 {[%emt 0:00:10]} dxc6 {[%emt 0:00:49]} 5. d3 {[%emt 0:00:28]} Bd6 {[%emt 0:05:03]} 6. h3 {[%emt 0:00:58]} h6 {[%emt 0:00:17]} 7. Nbd2 {[%emt 0:01:17]} Ne7 {[%emt 0:01:37]} 8. Nc4 {[%emt 0:03:03]} Ng6 {[%emt 0:02:14]} 9. Bd2 {[%emt 0:01:21]} Qf6 {[%emt 0:06:09]} 10. Bc3 {[%emt 0:03:17]} O-O {[%emt 0:02:01]} 11. g3 {[%emt 0:05:38]} Be6 {[%emt 0:08:41]} 12. Qe2 {[%emt 0:05:07]} b5 {[%emt 0:04:43]} 13. Na5 {[%emt 0:05:06]} c5 {[%emt 0:01:22]} 14. O-O-O {[%emt 0:04:49]} b4 {[%emt 0:03:56]} 15. Bd2 {[%emt 0:00:59]} Rfb8 {[%emt 0:02:07]} 16. Nh2 {[%emt 0:07:00]} Rb5 {[%emt 0:13:58]} 17. Nc6 {[%emt 0:11:32]} a5 {[%emt 0:00:34]} 18. Ng4 {[%emt 0:00:57]} Bxg4 {[%emt 0:01:58]} 1-0

[Event "CZE-ch U16 Girls 2023"]
[Site "Teplice"]
[Date "2023.03.15"]
[Round "6.10"]
[White "Hrbkova, Johana"]
[Black "Seda, Michaela"]
[Result "1-0"]
[ECO "C01"]
[WhiteElo "1254"]
[BlackElo "1610"]
[Annotator "NA RC COMBH"]
[PlyCount "75"]
[EventDate "2023.03.09"]
[EventType "swiss"]
[EventCountry "CZE"]
[SourceTitle "playchess.com"]
[Source "ChessBase"]
[SourceQuality "1"]
[TimeControl "40/5400+30:1800+30"]

1. e4 {[%emt 0:00:02]} e6 {[%emt 0:00:03]} 2. d4 {[%emt 0:00:15]} d5 {[%emt 0:00:04]} 3. exd5 {[%emt 0:02:39]} exd5 {[%emt 0:00:05]} 4. Nf3 {[%emt 0:01:54]} Bd6 {[%emt 0:00:15]} 5. Bd3 {[%emt 0:05:11]} Bg4 {[%emt 0:00:35]} 6. O-O {[%emt 0:03:00]} Ne7 {[%emt 0:00:34]} 7. b3 {[%emt 0:04:54]} O-O {[%emt 0:01:17]} 8. Bxh7+ {[%emt 0:05:18]} Kh8 {[%emt 0:05:32]} 9. Bd3 {[%emt 0:02:33]} g6 {[%emt 0:01:13]} 10. h3 {[%emt 0:09:51]} Bf5 {[%emt 0:03:01]} 11. c4 {[%emt 0:08:22]} c6 {[%emt 0:01:01]} 12. Bh6 {[%emt 0:04:33]} Re8 {[%emt 0:01:00]} 13. Ng5 {[%emt 0:02:41]} Kg8 {[%emt 0:00:47]} 14. Qf3 {[%emt 0:08:19]} f6 {[%emt 0:02:17]} 15. Ne6 {[%emt 0:08:34]} Qd7 {[%emt 0:02:47]} 16. Ng7 {[%emt 0:06:53]} Bxd3 {[%emt 0:08:25]} 17. Nxe8 {[%emt 0:02:37]} Qxe8 {[%emt 0:00:10]} 18. Qxd3 {[%emt 0:01:54]} g5 {[%emt 0:02:02]} 19. h4 {[%emt 0:02:54]} Qh5 {[%emt 0:00:36]} 20. Qh3 {[%emt 0:01:20]} g4 {[%emt 0:03:41]} 21. Qe3 {[%emt 0:01:25]} Kf7 {[%emt 0:01:29]} 22. Re1 {[%emt 0:02:37]} Kg6 {[%emt 0:02:35]} 23. Bg5 {[%emt 0:01:56]} Qh8 {[%emt 0:03:11]} 24. Qe6 {[%emt 0:02:48]} Nf5 {[%emt 0:01:14]} 25. Bxf6 {[%emt 0:04:22]} Qxf6 {[%emt 0:00:37]} 26. Qg8+ {[%emt 0:01:13]} Ng7 {[%emt 0:01:56]} 27. Nc3 {[%emt 0:04:34]} g3 {[%emt 0:04:04]} 28. h5+ {[%emt 0:01:11]} Kxh5 {[%emt 0:03:44]} 29. Qh7+ {[%emt 0:00:33]} Kg5 {[%emt 0:02:14]} 30. Re4 {[%emt 0:00:33]} gxf2+ {[%emt 0:06:27]} 31. Kf1 {[%emt 0:00:07]} Qh6 {[%emt 0:02:01]} 32. Rg4+ {[%emt 0:00:34]} Kh5 {[%emt 0:00:18]} 33. Rh4+ {[%emt 0:00:18]} Kxh4 {[%emt 0:00:19]} 34. Qxh6+ {[%emt 0:00:07]} Nh5 {[%emt 0:00:10]} 35. Qxd6 {[%emt 0:00:27]} Na6 {[%emt 0:00:39]} 36. Kxf2 {[%emt 0:00:37]} Rg8 {[%emt 0:00:39]} 37. Rh1+ {[%emt 0:00:56]} Kg4 {[%emt 0:00:26]} 38. Qe6+ {[%emt 0:00:25]} 1-0

[Event "CZE-ch U16 Girls 2023"]
[Site "Teplice"]
[Date "2023.03.15"]
[Round "6.11"]
[White "Sterikova, Marketa"]
[Black "Vavrinkova, Marie"]
[Result "1/2-1/2"]
[ECO "B08"]
[WhiteElo "1254"]
[BlackElo "1457"]
[Annotator "NA RC COMBH"]
[PlyCount "120"]
[EventDate "2023.03.09"]
[EventType "swiss"]
[EventCountry "CZE"]
[SourceTitle "playchess.com"]
[Source "ChessBase"]
[SourceQuality "1"]
[TimeControl "40/5400+30:1800+30"]

1. e4 {[%emt 0:00:01]} d6 {[%emt 0:00:13]} 2. d4 {[%emt 0:00:11]} Nf6 {[%emt 0:00:10]} 3. Nc3 {[%emt 0:00:11]} g6 {[%emt 0:00:08]} 4. Nf3 {[%emt 0:00:11]} Bg7 {[%emt 0:00:19]} 5. Be2 {[%emt 0:01:04]} O-O {[%emt 0:00:28]} 6. O-O {[%emt 0:00:09]} e5 {[%emt 0:00:51]} 7. dxe5 {[%emt 0:00:30]} dxe5 {[%emt 0:00:16]} 8. Qxd8 {[%emt 0:00:07]} Rxd8 {[%emt 0:00:33]} 9. Be3 {[%emt 0:01:05]} c6 {[%emt 0:10:18]} 10. Rad1 {[%emt 0:00:22]} Re8 {[%emt 0:01:42]} 11. Bc4 {[%emt 0:01:43]} h6 {[%emt 0:02:41]} 12. h3 {[%emt 0:01:17]} Nbd7 {[%emt 0:01:43]} 13. Rd2 {[%emt 0:01:04]} Nh5 {[%emt 0:04:27]} 14. Rfd1 {[%emt 0:03:16]} Nf8 {[%emt 0:06:44]} 15. Rd8 {[%emt 0:04:13]} Be6 {[%emt 0:02:17]} 16. Rxa8 {[%emt 0:00:48]} Rxa8 {[%emt 0:00:15]} 17. Bxe6 {[%emt 0:00:08]} Nxe6 {[%emt 0:00:30]} 18. a3 {[%emt 0:13:06]} b6 {[%emt 0:04:48]} 19. Nd2 {[%emt 0:06:35]} Rd8 {[%emt 0:04:04]} 20. Nc4 {[%emt 0:00:25]} Nd4 {[%emt 0:00:54]} 21. Kf1 {[%emt 0:02:20]} Bf6 {[%emt 0:05:27]} 22. Bxh6 {[%emt 0:01:11]} g5 {[%emt 0:00:22]} 23. h4 {[%emt 0:01:32]} gxh4 {[%emt 0:01:38]} 24. Bc1 {[%emt 0:01:31]} Nxc2 {[%emt 0:01:27]} 25. Rxd8+ {[%emt 0:00:18]} Bxd8 {[%emt 0:00:17]} 26. Nxe5 {[%emt 0:00:08]} c5 {[%emt 0:01:42]} 27. Nc6 {[%emt 0:00:23]} Bc7 {[%emt 0:02:45]} 28. Nxa7 {[%emt 0:00:33]} Be5 {[%emt 0:02:49]} 29. Nd5 {[%emt 0:00:24]} Bd4 {[%emt 0:01:30]} 30. Nc6 {[%emt 0:00:26]} f6 {[%emt 0:03:40]} 31. Nxb6 {[%emt 0:01:27]} Kf7 {[%emt 0:01:00]} 32. a4 {[%emt 0:00:17]} Ng7 {[%emt 0:00:18]} 33. a5 {[%emt 0:00:11]} Ne8 {[%emt 0:00:37]} 34. Nxd4 {[%emt 0:00:34]} Nxd4 {[%emt 0:00:46]} 35. Be3 {[%emt 0:00:29]} Nc6 {[%emt 0:00:13]} 36. Bxc5 {[%emt 0:00:39]} Nxa5 {[%emt 0:00:08]} 37. Ke2 {[%emt 0:00:34]} Nb3 {[%emt 0:00:17]} 38. Be3 {[%emt 0:00:47]} Nd6 {[%emt 0:00:10]} 39. Kd3 {[%emt 0:00:38]} Ke6 {[%emt 0:00:31]} 40. f3 {[%emt 0:00:26]} f5 {[%emt 0:01:58]} 41. Bg5 {[%emt 0:31:48]} fxe4+ {[%emt 0:30:37]} 42. fxe4 {[%emt 0:00:26]} Nc5+ {[%emt 0:00:13]} 43. Ke3 {[%emt 0:01:14]} Ndxe4 {[%emt 0:00:42]} 44. Bxh4 {[%emt 0:00:34]} Kf5 {[%emt 0:00:28]} 45. Nd5 {[%emt 0:02:03]} Kg4 {[%emt 0:01:15]} 46. Be7 {[%emt 0:00:58]} Kf5 {[%emt 0:01:03]} 47. Bxc5 {[%emt 0:00:21]} Nxc5 {[%emt 0:00:06]} 48. Kf3 {[%emt 0:00:18]} Nd3 {[%emt 0:00:43]} 49. Ne3+ {[%emt 0:00:42]} Ke6 {[%emt 0:00:27]} 50. b3 {[%emt 0:00:22]} Nb4 {[%emt 0:00:13]} 51. Kg4 {[%emt 0:00:29]} Kf7 {[%emt 0:00:14]} 52. Kf5 {[%emt 0:00:14]} Nc6 {[%emt 0:00:24]} 53. g4 {[%emt 0:00:11]} Nd4+ {[%emt 0:00:11]} 54. Kg5 {[%emt 0:00:13]} Nxb3 {[%emt 0:00:06]} 55. Kh6 {[%emt 0:00:09]} Nc5 {[%emt 0:00:55]} 56. g5 {[%emt 0:00:32]} Ne6 {[%emt 0:00:24]} 57. g6+ {[%emt 0:00:18]} Kf8 {[%emt 0:00:51]} 58. Kh7 {[%emt 0:00:21]} Ng5+ {[%emt 0:00:22]} 59. Kh6 {[%emt 0:00:21]} Nf7+ {[%emt 0:00:07]} 60. gxf7 {[%emt 0:00:25]} Kxf7 {[%emt 0:00:08]} 1/2-1/2

[Event "CZE-ch U16 Girls 2023"]
[Site "Teplice"]
[Date "2023.03.16"]
[Round "7.1"]
[White "Stavova, Marketa"]
[Black "Zelbova, Lada"]
[Result "0-1"]
[ECO "D31"]
[WhiteElo "1284"]
[BlackElo "1822"]
[Annotator "NA RC COMBH"]
[PlyCount "46"]
[EventDate "2023.03.09"]
[EventType "swiss"]
[EventCountry "CZE"]
[SourceTitle "playchess.com"]
[Source "ChessBase"]
[SourceQuality "1"]
[TimeControl "40/5400+30:1800+30"]

1. d4 {[%emt 0:00:07]} d5 {[%emt 0:01:10]} 2. c4 {[%emt 0:00:36]} e6 {[%emt 0:00:31]} 3. Nc3 {[%emt 0:01:00]} c6 {[%emt 0:00:45]} 4. cxd5 {[%emt 0:01:07]} exd5 {[%emt 0:00:24]} 5. Nf3 {[%emt 0:01:17]} Nf6 {[%emt 0:01:22]} 6. Bg5 {[%emt 0:01:27]} Be7 {[%emt 0:01:00]} 7. Qc2 {[%emt 0:01:03]} O-O {[%emt 0:03:18]} 8. e3 {[%emt 0:01:29]} Ne4 {[%emt 0:05:15]} 9. Bxe7 Qxe7 {[%emt 0:00:46]} 10. Bd3 {[%emt 0:03:05]} Re8 {[%emt 0:01:55]} 11. h3 {[%emt 0:02:27]} Nd7 {[%emt 0:04:29]} 12. O-O {[%emt 0:02:11]} f6 {[%emt 0:08:48]} 13. Nd2 {[%emt 0:03:02]} f5 {[%emt 0:04:54]} 14. Be2 {[%emt 0:02:59]} Ndf6 {[%emt 0:03:49]} 15. Ncxe4 {[%emt 0:02:15]} Nxe4 {[%emt 0:10:16]} 16. Nxe4 {[%emt 0:02:08]} fxe4 {[%emt 0:00:42]} 17. Kh1 {[%emt 0:03:48]} Qh4 {[%emt 0:02:21]} 18. Qc5 {[%emt 0:05:34] [#]} Bxh3 $1 {[%emt 0:03:43]} 19. g3 {[%emt 0:04:55]} Qf6 {[%emt 0:06:40]} 20. Rg1 {[%emt 0:03:09]} Qh6 {[%emt 0:01:03]} 21. Rge1 {[%emt 0:00:55]} Bg4+ {[%emt 0:00:15]} 22. Kg1 {[%emt 0:00:36]} Bf3 {[%emt 0:00:41]} 23. Bxf3 {[%emt 0:01:29]} exf3 {[%emt 0:00:24]} 0-1

[Event "CZE-ch U16 Girls 2023"]
[Site "Teplice"]
[Date "2023.03.16"]
[Round "7.2"]
[White "Havelkova, Beata"]
[Black "Cinkova, Vicky"]
[Result "0-1"]
[ECO "A04"]
[WhiteElo "1670"]
[BlackElo "1285"]
[Annotator "NA RC COMBH"]
[PlyCount "62"]
[EventDate "2023.03.09"]
[EventType "swiss"]
[EventCountry "CZE"]
[SourceTitle "playchess.com"]
[Source "ChessBase"]
[SourceQuality "1"]
[TimeControl "40/5400+30:1800+30"]

1. Nf3 {[%emt 0:00:02]} c6 {[%emt 0:00:17]} 2. e3 {[%emt 0:00:08]} d5 {[%emt 0:00:43]} 3. b3 {[%emt 0:00:25]} Bg4 {[%emt 0:01:52]} 4. Bb2 {[%emt 0:00:40]} Nd7 {[%emt 0:04:00]} 5. d4 {[%emt 0:03:41]} e6 {[%emt 0:03:43]} 6. Be2 {[%emt 0:01:28]} Bd6 {[%emt 0:03:44]} 7. O-O {[%emt 0:02:48]} f5 {[%emt 0:02:07]} 8. Nbd2 {[%emt 0:09:28]} Ngf6 {[%emt 0:03:21]} 9. c4 {[%emt 0:08:18]} O-O {[%emt 0:04:27]} 10. Ne5 {[%emt 0:07:39]} Bxe2 {[%emt 0:05:32]} 11. Qxe2 {[%emt 0:00:06]} Ne4 {[%emt 0:05:35]} 12. Nxd7 {[%emt 0:04:27]} Qxd7 {[%emt 0:03:28]} 13. Nf3 {[%emt 0:05:13]} Rf6 {[%emt 0:03:50]} 14. Ne5 {[%emt 0:00:54]} Qe7 {[%emt 0:03:05]} 15. f3 {[%emt 0:01:18]} Ng5 {[%emt 0:03:17]} 16. Rae1 {[%emt 0:01:58]} Rh6 {[%emt 0:05:14]} 17. g3 {[%emt 0:14:00]} Rf8 {[%emt 0:05:01]} 18. Kg2 {[%emt 0:01:29]} Rff6 {[%emt 0:05:02]} 19. Nd3 {[%emt 0:03:39]} Nh3 {[%emt 0:09:51]} 20. Rh1 {[%emt 0:08:13]} Rfg6 {[%emt 0:04:52]} 21. Ne5 {[%emt 0:01:49]} Bxe5 {[%emt 0:04:16]} 22. dxe5 {[%emt 0:00:08]} f4 {[%emt 0:01:18]} 23. g4 {[%emt 0:01:18]} Rh4 {[%emt 0:03:48]} 24. Bc1 {[%emt 0:03:02]} Qg5 {[%emt 0:02:12]} 25. exf4 {[%emt 0:00:57]} Nxf4+ {[%emt 0:00:26]} 26. Bxf4 {[%emt 0:00:06]} Qxf4 {[%emt 0:00:05]} 27. h3 {[%emt 0:01:10]} h5 {[%emt 0:02:13]} 28. Qe3 {[%emt 0:00:41]} hxg4 {[%emt 0:02:20]} 29. fxg4 {[%emt 0:06:40]} Rhxg4+ {[%emt 0:01:06]} 30. hxg4 {[%emt 0:00:22]} Qxg4+ {[%emt 0:00:12]} 31. Kf1 {[%emt 0:00:33]} Qg2# {[%emt 0:00:07]} 0-1

[Event "CZE-ch U16 Girls 2023"]
[Site "Teplice"]
[Date "2023.03.16"]
[Round "7.3"]
[White "Vacekova, Anita"]
[Black "Kavanova, Anezka"]
[Result "1-0"]
[ECO "C70"]
[WhiteElo "1350"]
[BlackElo "1384"]
[Annotator "NA RC COMBH"]
[PlyCount "97"]
[EventDate "2023.03.09"]
[EventType "swiss"]
[EventCountry "CZE"]
[SourceTitle "playchess.com"]
[Source "ChessBase"]
[SourceQuality "1"]
[TimeControl "40/5400+30:1800+30"]

1. e4 {[%emt 0:00:08]} e5 {[%emt 0:00:03]} 2. Nf3 {[%emt 0:00:11]} Nc6 {[%emt 0:00:04]} 3. Bb5 {[%emt 0:00:15]} a6 {[%emt 0:00:06]} 4. Ba4 {[%emt 0:00:03]} b5 {[%emt 0:00:03]} 5. Bb3 {[%emt 0:00:07]} Na5 {[%emt 0:00:13]} 6. a4 {[%emt 0:06:40]} Nxb3 {[%emt 0:00:18]} 7. cxb3 {[%emt 0:00:11]} Bb7 {[%emt 0:00:57]} 8. d3 {[%emt 0:01:24]} d6 {[%emt 0:00:31]} 9. O-O {[%emt 0:02:52]} Nf6 {[%emt 0:05:02]} 10. Bg5 {[%emt 0:04:24]} Be7 {[%emt 0:00:20]} 11. Nbd2 {[%emt 0:05:16]} c5 {[%emt 0:02:31]} 12. Re1 {[%emt 0:11:08]} O-O {[%emt 0:00:12]} 13. Rc1 {[%emt 0:08:32]} Rc8 {[%emt 0:00:40]} 14. h3 {[%emt 0:03:18]} Nd5 {[%emt 0:01:51]} 15. Bxe7 {[%emt 0:03:05]} Nxe7 {[%emt 0:00:05]} 16. Nf1 {[%emt 0:05:15]} Re8 {[%emt 0:01:06]} 17. Ng3 {[%emt 0:03:29]} Ng6 {[%emt 0:00:30]} 18. Nf5 {[%emt 0:06:04]} d5 {[%emt 0:02:47]} 19. Nd2 {[%emt 0:07:17]} Nf4 {[%emt 0:02:59]} 20. Re3 {[%emt 0:02:46]} Re6 {[%emt 0:10:10]} 21. Kh2 {[%emt 0:07:38]} Rg6 {[%emt 0:03:48]} 22. g3 {[%emt 0:01:27]} Ne6 {[%emt 0:00:41]} 23. exd5 {[%emt 0:04:34]} Nd4 {[%emt 0:01:31]} 24. Rxe5 {[%emt 0:01:17]} Nxf5 25. Rxf5 {[%emt 0:00:18]} Bxd5 {[%emt 0:02:49]} 26. Ne4 {[%emt 0:01:09]} Rgc6 {[%emt 0:01:33]} 27. Nc3 {[%emt 0:01:13]} Be6 {[%emt 0:00:43]} 28. Rf3 {[%emt 0:00:56]} Qd7 {[%emt 0:06:05]} 29. g4 {[%emt 0:01:31]} Qc7+ {[%emt 0:10:08]} 30. Kg1 {[%emt 0:00:50]} b4 {[%emt 0:03:07]} 31. Ne4 {[%emt 0:02:22]} Bd5 {[%emt 0:01:53]} 32. Re3 {[%emt 0:00:38]} Re8 {[%emt 0:08:45]} 33. Nf6+ {[%emt 0:01:38]} gxf6 {[%emt 0:00:44]} 34. Rxe8+ {[%emt 0:00:08]} Kg7 {[%emt 0:00:04]} 35. Re3 {[%emt 0:02:47]} Qf4 {[%emt 0:00:37]} 36. Qc2 {[%emt 0:03:59]} Rc8 {[%emt 0:01:41]} 37. Rce1 {[%emt 0:01:57]} h5 {[%emt 0:03:11]} 38. gxh5 {[%emt 0:01:06]} Bf3 {[%emt 0:00:37]} 39. Rxf3 {[%emt 0:01:11]} Qxf3 {[%emt 0:00:06]} 40. Kh2 {[%emt 0:00:25]} Qxh5 {[%emt 0:01:10]} 41. Qe2 {[%emt 0:30:41]} Qxe2 {[%emt 0:31:26]} 42. Rxe2 {[%emt 0:00:04]} Rd8 {[%emt 0:00:25]} 43. Re3 {[%emt 0:00:00]} Kh6 {[%emt 0:00:00]} 44. Kg2 {[%emt 0:00:00]} Rd4 {[%emt 0:00:00]} 45. Kf3 {[%emt 0:00:00]} f5 {[%emt 0:00:00]} 46. Ke2 {[%emt 0:00:00]} f6 {[%emt 0:00:00]} 47. Re6 {[%emt 0:00:00]} Kg5 {[%emt 0:00:00]} 48. Rxa6 {[%emt 0:00:00]} Rd8 {[%emt 0:00:00]} 49. Rc6 1-0